[Event "*** Titled Tuesday Blitz"]
[Site "Chess.com"]
[Date "2021.03.02"]
[Round "2"]
[White "LileKoridze"]
[Black "Flawless_Fighter"]
[Result "0-1"]
[WhiteElo "2411"]
[BlackElo "2656"]
[TimeControl "180+1"]
[EndTime "10:20:00 PST"]
[Termination "Flawless_Fighter won by checkmate"]

1. d4 {[%clk 0:03:00.9]} 1... Nf6 {[%clk 0:02:45.5]} 2. c4 {[%clk 0:03:00.7]}
2... e6 {[%clk 0:02:36.6]} 3. Nf3 {[%clk 0:02:56.7]} 3... b6 {[%clk 0:02:35.5]}
4. g3 {[%clk 0:02:56.2]} 4... Bb7 {[%clk 0:02:31.3]} 5. Bg2 {[%clk 0:02:56.1]}
5... c6 {[%clk 0:02:31.1]} 6. O-O {[%clk 0:02:55.3]} 6... d5 {[%clk 0:02:31.8]}
7. Nc3 {[%clk 0:02:55.8]} 7... Be7 {[%clk 0:02:31.7]} 8. Qc2 {[%clk 0:02:56]}
8... O-O {[%clk 0:02:31.5]} 9. b3 {[%clk 0:02:54.5]} 9... Na6 {[%clk 0:02:30.5]}
10. a3 {[%clk 0:02:53.6]} 10... Rc8 {[%clk 0:02:27.9]} 11. e4 {[%clk 0:02:50.1]}
11... c5 {[%clk 0:02:26.2]} 12. exd5 {[%clk 0:02:47.3]} 12... exd5 {[%clk
0:02:24.2]} 13. dxc5 {[%clk 0:02:47.4]} 13... dxc4 {[%clk 0:02:17.9]} 14. cxb6
{[%clk 0:02:45.1]} 14... Qxb6 {[%clk 0:02:14]} 15. b4 {[%clk 0:02:41.5]} 15...
Qc7 {[%clk 0:01:35.7]} 16. Bb2 {[%clk 0:02:38.5]} 16... Rfd8 {[%clk 0:01:34.5]}
17. Rad1 {[%clk 0:02:33.5]} 17... Nb8 {[%clk 0:01:31.3]} 18. Rfe1 {[%clk
0:02:08.9]} 18... Rxd1 {[%clk 0:01:25.6]} 19. Rxd1 {[%clk 0:02:06.8]} 19... Rd8
{[%clk 0:01:23.5]} 20. Rxd8+ {[%clk 0:01:54.3]} 20... Qxd8 {[%clk 0:01:22.6]}
21. h3 {[%clk 0:01:53.2]} 21... a5 {[%clk 0:01:22]} 22. bxa5 {[%clk 0:01:50.4]}
22... Qxa5 {[%clk 0:01:20.7]} 23. a4 {[%clk 0:01:45.3]} 23... Nc6 {[%clk
0:01:17.7]} 24. Nb5 {[%clk 0:01:43.6]} 24... Qb4 {[%clk 0:01:00.5]} 25. Nd2
{[%clk 0:01:24.3]} 25... Qc5 {[%clk 0:00:33.6]} 26. Ba3 {[%clk 0:01:14.6]} 26...
Qe5 {[%clk 0:00:32.5]} 27. Bxe7 {[%clk 0:01:04.5]} 27... Qxe7 {[%clk 0:00:32.3]}
28. Nxc4 {[%clk 0:01:02.5]} 28... Nb4 {[%clk 0:00:22.9]} 29. Qb1 {[%clk
0:00:52.3]} 29... Bxg2 {[%clk 0:00:21.7]} 30. Kxg2 {[%clk 0:00:53.2]} 30... h5
{[%clk 0:00:19]} 31. Nbd6 {[%clk 0:00:48.2]} 31... Nfd5 {[%clk 0:00:18.2]} 32.
Qe4 {[%clk 0:00:41.8]} 32... Qxe4+ {[%clk 0:00:12.3]} 33. Nxe4 {[%clk
0:00:42.7]} 33... Kf8 {[%clk 0:00:11.2]} 34. a5 {[%clk 0:00:41.7]} 34... Ke7
{[%clk 0:00:11.6]} 35. Nc5 {[%clk 0:00:39.7]} 35... Nc7 {[%clk 0:00:12]} 36. Kf3
{[%clk 0:00:36.5]} 36... Kf6 {[%clk 0:00:11.6]} 37. Ke4 {[%clk 0:00:36]} 37...
g6 {[%clk 0:00:11.1]} 38. Ne5 {[%clk 0:00:20.9]} 38... Ke7 {[%clk 0:00:10.2]}
39. Nc4 {[%clk 0:00:17.9]} 39... Kf6 {[%clk 0:00:08.5]} 40. Kd4 {[%clk
0:00:15.8]} 40... Nc6+ {[%clk 0:00:07.3]} 41. Kc3 {[%clk 0:00:16.2]} 41... Ke7
{[%clk 0:00:06.7]} 42. a6 {[%clk 0:00:14.1]} 42... Nb5+ {[%clk 0:00:07.3]} 43.
Kb3 {[%clk 0:00:10.7]} 43... Kd8 {[%clk 0:00:07.7]} 44. Ka4 {[%clk 0:00:08.1]}
44... Nc7 {[%clk 0:00:07.6]} 45. Na5 {[%clk 0:00:06.3]} 45... Na7 {[%clk
0:00:08.2]} 46. Nab3 {[%clk 0:00:05.6]} 46... Ke7 {[%clk 0:00:07.9]} 47. Nd4
{[%clk 0:00:05.2]} 47... Kd6 {[%clk 0:00:08.3]} 48. Kb4 {[%clk 0:00:05.8]} 48...
Nd5+ {[%clk 0:00:07.2]} 49. Kc4 {[%clk 0:00:06.5]} 49... Nb6+ {[%clk 0:00:07.8]}
50. Kb4 {[%clk 0:00:06.9]} 50... Nd5+ {[%clk 0:00:07.9]} 51. Kc4 {[%clk
0:00:07.6]} 51... Nb6+ {[%clk 0:00:08.2]} 52. Kb4 {[%clk 0:00:08.2]} 52... Kd5
{[%clk 0:00:06.3]} 53. Nb5 {[%clk 0:00:07.8]} 53... Nc6+ {[%clk 0:00:05.7]} 54.
Ka3 {[%clk 0:00:05.7]} 54... Kxc5 {[%clk 0:00:06.6]} 55. Nc7 {[%clk 0:00:05.7]}
55... Na7 {[%clk 0:00:05.2]} 56. Ne8 {[%clk 0:00:05.8]} 56... Kb5 {[%clk
0:00:03.9]} 57. Nd6+ {[%clk 0:00:06.2]} 57... Kxa6 {[%clk 0:00:04.8]} 58. Nxf7
{[%clk 0:00:07]} 58... Nc6 {[%clk 0:00:05.1]} 59. Nh8 {[%clk 0:00:06.1]} 59...
Ne7 {[%clk 0:00:05.5]} 60. Nf7 {[%clk 0:00:06.2]} 60... Kb7 {[%clk 0:00:05.9]}
61. Kb4 {[%clk 0:00:06.5]} 61... Kc6 {[%clk 0:00:06.5]} 62. Kc3 {[%clk
0:00:07.2]} 62... Nbd5+ {[%clk 0:00:07]} 63. Kd4 {[%clk 0:00:07.5]} 63... Kd7
{[%clk 0:00:07.9]} 64. Ne5+ {[%clk 0:00:07.6]} 64... Ke6 {[%clk 0:00:08.1]} 65.
f4 {[%clk 0:00:07.1]} 65... Nf5+ {[%clk 0:00:08.1]} 66. Ke4 {[%clk 0:00:07]}
66... Nf6+ {[%clk 0:00:07.8]} 67. Kf3 {[%clk 0:00:07.2]} 67... Ne7 {[%clk
0:00:07.9]} 68. g4 {[%clk 0:00:06.5]} 68... h4 {[%clk 0:00:06.8]} 69. Nd3 {[%clk
0:00:05.7]} 69... Nfd5 {[%clk 0:00:06.3]} 70. Ne5 {[%clk 0:00:05.8]} 70... Kf6
{[%clk 0:00:06.4]} 71. Ke4 {[%clk 0:00:05.5]} 71... Ke6 {[%clk 0:00:05.1]} 72.
Nxg6 {[%clk 0:00:05.6]} 72... Nxg6 {[%clk 0:00:04.3]} 73. f5+ {[%clk 0:00:06.5]}
73... Kf6 {[%clk 0:00:04.4]} 74. fxg6 {[%clk 0:00:07.4]} 74... Ne7 {[%clk
0:00:04.6]} 75. Kf3 {[%clk 0:00:07.1]} 75... Nxg6 {[%clk 0:00:04.5]} 76. Ke4
{[%clk 0:00:07.8]} 76... Kg5 {[%clk 0:00:04.9]} 77. Kf3 {[%clk 0:00:07.6]} 77...
Nf4 {[%clk 0:00:05.3]} 78. Kf2 {[%clk 0:00:07.9]} 78... Nxh3+ {[%clk 0:00:05.9]}
79. Kg2 {[%clk 0:00:08.5]} 79... Nf4+ {[%clk 0:00:06]} 80. Kh2 {[%clk
0:00:09.4]} 80... Kxg4 {[%clk 0:00:06.1]} 81. Kh1 {[%clk 0:00:10.3]} 81... Kg3
{[%clk 0:00:06]} 82. Kg1 {[%clk 0:00:11.2]} 82... h3 {[%clk 0:00:05.9]} 83. Kh1
{[%clk 0:00:12.1]} 83... Nd3 {[%clk 0:00:06.2]} 84. Kg1 {[%clk 0:00:12.6]} 84...
h2+ {[%clk 0:00:06.7]} 85. Kh1 {[%clk 0:00:13.1]} 85... Nf2# {[%clk 0:00:07]}
0-1

[Event "*** Titled Tuesday Blitz"]
[Site "Chess.com"]
[Date "2021.03.02"]
[Round "2"]
[White "mbachez"]
[Black "ViktoriyaTarasova"]
[Result "0-1"]
[WhiteElo "2457"]
[BlackElo "2283"]
[TimeControl "180+1"]
[EndTime "10:20:05 PST"]
[Termination "ViktoriyaTarasova won by resignation"]

1. e4 {[%clk 0:03:00.9]} 1... e5 {[%clk 0:02:59.5]} 2. Nf3 {[%clk 0:02:58]} 2...
Nc6 {[%clk 0:02:59.5]} 3. Bb5 {[%clk 0:02:57.1]} 3... Nf6 {[%clk 0:02:59.4]} 4.
O-O {[%clk 0:02:52.8]} 4... Nxe4 {[%clk 0:02:59.2]} 5. Re1 {[%clk 0:02:47.3]}
5... Nd6 {[%clk 0:02:58.8]} 6. Nxe5 {[%clk 0:02:46.1]} 6... Nxe5 {[%clk
0:02:54.8]} 7. Rxe5+ {[%clk 0:02:44.7]} 7... Be7 {[%clk 0:02:55.5]} 8. Bf1
{[%clk 0:02:45.2]} 8... O-O {[%clk 0:02:55.3]} 9. Nc3 {[%clk 0:02:45.1]} 9...
Ne8 {[%clk 0:02:52.4]} 10. d4 {[%clk 0:02:42.3]} 10... Bf6 {[%clk 0:02:46.9]}
11. Re1 {[%clk 0:02:41.8]} 11... d5 {[%clk 0:02:47]} 12. Bf4 {[%clk 0:02:41.1]}
12... c6 {[%clk 0:02:45.1]} 13. Bd3 {[%clk 0:02:31.1]} 13... Nd6 {[%clk
0:02:44.5]} 14. Ne2 {[%clk 0:02:27.5]} 14... Nf5 {[%clk 0:02:38.4]} 15. c3
{[%clk 0:02:23.2]} 15... Be6 {[%clk 0:02:38.1]} 16. Ng3 {[%clk 0:02:21.3]} 16...
Nxg3 {[%clk 0:02:33.5]} 17. hxg3 {[%clk 0:02:18.7]} 17... Qd7 {[%clk 0:02:21.2]}
18. Be5 {[%clk 0:02:12.6]} 18... Bxe5 {[%clk 0:02:19.5]} 19. Rxe5 {[%clk
0:02:11.6]} 19... Rae8 {[%clk 0:02:13.8]} 20. Qh5 {[%clk 0:02:07.1]} 20... g6
{[%clk 0:01:57.7]} 21. Qh6 {[%clk 0:02:05.9]} 21... f6 {[%clk 0:01:51.8]} 22.
Re3 {[%clk 0:02:04.7]} 22... Qg7 {[%clk 0:01:48.6]} 23. Qh4 {[%clk 0:01:53.5]}
23... Bd7 {[%clk 0:01:46.3]} 24. Rae1 {[%clk 0:01:52.3]} 24... Rxe3 {[%clk
0:01:45.1]} 25. Rxe3 {[%clk 0:01:52.1]} 25... Re8 {[%clk 0:01:45.6]} 26. Qf4
{[%clk 0:01:50.9]} 26... Rxe3 {[%clk 0:01:43]} 27. Qxe3 {[%clk 0:01:49.6]} 27...
Qf7 {[%clk 0:01:31.4]} 28. Qf4 {[%clk 0:01:47.7]} 28... Be8 {[%clk 0:01:09.3]}
29. Qb8 {[%clk 0:01:45.7]} 29... a6 {[%clk 0:01:09.2]} 30. a4 {[%clk 0:01:44]}
30... Kg7 {[%clk 0:01:06.4]} 31. a5 {[%clk 0:01:43.4]} 31... Qe7 {[%clk
0:01:06.6]} 32. Kh2 {[%clk 0:01:38.2]} 32... h5 {[%clk 0:01:05.8]} 33. Qf4
{[%clk 0:01:35.4]} 33... Bf7 {[%clk 0:01:04.3]} 34. Qd2 {[%clk 0:01:27.9]} 34...
Qd8 {[%clk 0:01:03.4]} 35. b4 {[%clk 0:01:24.8]} 35... Qe7 {[%clk 0:01:03.3]}
36. Bc2 {[%clk 0:01:22.7]} 36... Qe6 {[%clk 0:01:02.6]} 37. Bd1 {[%clk
0:01:18.9]} 37... Qe7 {[%clk 0:01:01.9]} 38. Bf3 {[%clk 0:01:18.6]} 38... Qe6
{[%clk 0:01:01.6]} 39. Qf4 {[%clk 0:01:18.4]} 39... Qe7 {[%clk 0:01:00.8]} 40.
Qb8 {[%clk 0:01:17.8]} 40... g5 {[%clk 0:00:59]} 41. g4 {[%clk 0:01:13.4]} 41...
h4 {[%clk 0:00:57.9]} 42. g3 {[%clk 0:01:12.6]} 42... hxg3+ {[%clk 0:00:57.2]}
43. Kxg3 {[%clk 0:01:12.8]} 43... Qd7 {[%clk 0:00:53.7]} 44. Be2 {[%clk
0:01:12]} 44... Bg6 {[%clk 0:00:52.8]} 45. Bf1 {[%clk 0:01:10.5]} 45... Qe7
{[%clk 0:00:51.6]} 46. Bg2 {[%clk 0:01:09.1]} 46... Qd7 {[%clk 0:00:50.4]} 47.
f4 {[%clk 0:01:05.1]} 47... gxf4+ {[%clk 0:00:48.5]} 48. Qxf4 {[%clk 0:01:05]}
48... Qe7 {[%clk 0:00:48.9]} 49. Bf3 {[%clk 0:01:04.7]} 49... Qe1+ {[%clk
0:00:48.5]} 50. Kg2 {[%clk 0:00:59.8]} 50... Qxc3 {[%clk 0:00:41.9]} 51. g5
{[%clk 0:00:59.4]} 51... Qc2+ {[%clk 0:00:39.1]} 52. Kg3 {[%clk 0:00:56.2]}
52... fxg5 {[%clk 0:00:38.5]} 53. Qe5+ {[%clk 0:00:51.2]} 53... Kf7 {[%clk
0:00:37.9]} 54. Qc7+ {[%clk 0:00:49.1]} 54... Kg8 {[%clk 0:00:37.8]} 55. Qc8+
{[%clk 0:00:46]} 55... Kg7 {[%clk 0:00:36.5]} 56. Qxb7+ {[%clk 0:00:45.7]} 56...
Kh6 {[%clk 0:00:33.7]} 57. Qxa6 {[%clk 0:00:44.3]} 57... Qc1 {[%clk 0:00:32.3]}
58. Qe2 {[%clk 0:00:39.8]} 58... Qg1+ {[%clk 0:00:27.7]} 59. Bg2 {[%clk
0:00:38.8]} 59... Qxd4 {[%clk 0:00:25.6]} 60. Kh2 {[%clk 0:00:28]} 60... Qf4+
{[%clk 0:00:24.7]} 61. Kh1 {[%clk 0:00:26.5]} 61... Qxb4 {[%clk 0:00:22.2]} 62.
a6 {[%clk 0:00:26.3]} 62... Qb1+ {[%clk 0:00:21.6]} 63. Qf1 {[%clk 0:00:26]}
63... Qb8 {[%clk 0:00:19.7]} 64. Qa1 {[%clk 0:00:23.1]} 64... Qa7 {[%clk
0:00:18.9]} 65. Qh8+ {[%clk 0:00:21.7]} 65... Bh7 {[%clk 0:00:19.2]} 66. Qf6+
{[%clk 0:00:20.8]} 66... Bg6 {[%clk 0:00:18.6]} 67. Qxc6 {[%clk 0:00:20.4]}
67... Qf2 {[%clk 0:00:16.9]} 68. Qxd5 {[%clk 0:00:19.9]} 68... Qe1+ {[%clk
0:00:16.8]} 69. Kh2 {[%clk 0:00:19.9]} 69... Qh4+ {[%clk 0:00:17.3]} 70. Bh3
{[%clk 0:00:19.2]} 70... Qf4+ {[%clk 0:00:17.2]} 71. Kg2 {[%clk 0:00:15.6]}
71... Be4+ {[%clk 0:00:16.5]} 72. Qxe4 {[%clk 0:00:14.9]} 72... Qxe4+ {[%clk
0:00:16.7]} 73. Kh2 {[%clk 0:00:15.6]} 73... Qc2+ {[%clk 0:00:16.1]} 74. Bg2
{[%clk 0:00:14.8]} 74... Qc7+ {[%clk 0:00:16.1]} 75. Kh3 {[%clk 0:00:14]} 75...
Qb6 {[%clk 0:00:15]} 76. Bb7 {[%clk 0:00:12.4]} 76... Kg6 {[%clk 0:00:15.3]} 77.
Be4+ {[%clk 0:00:11.6]} 77... Kf6 {[%clk 0:00:14.5]} 78. Bd3 {[%clk 0:00:11]}
78... Ke5 {[%clk 0:00:14.4]} 79. Kg4 {[%clk 0:00:10.9]} 79... Kf6 {[%clk
0:00:14.3]} 80. Kh5 {[%clk 0:00:10.9]} 80... Qb4 {[%clk 0:00:13.6]} 81. Be4
{[%clk 0:00:08.4]} 81... Qxe4 {[%clk 0:00:13.2]} 0-1

[Event "*** Titled Tuesday Blitz"]
[Site "Chess.com"]
[Date "2021.03.02"]
[Round "2"]
[White "googlegoom"]
[Black "CrazyMartian"]
[Result "1/2-1/2"]
[WhiteElo "2467"]
[BlackElo "2282"]
[TimeControl "180+1"]
[EndTime "10:20:07 PST"]
[Termination "Game drawn by agreement"]

1. Nf3 {[%clk 0:03:00.9]} 1... d5 {[%clk 0:02:59.7]} 2. b3 {[%clk 0:03:00.7]}
2... Nf6 {[%clk 0:02:59.2]} 3. Bb2 {[%clk 0:03:01.2]} 3... c6 {[%clk 0:02:59]}
4. e3 {[%clk 0:03:01.8]} 4... Bf5 {[%clk 0:02:58.6]} 5. Be2 {[%clk 0:03:02.2]}
5... h6 {[%clk 0:02:58.3]} 6. O-O {[%clk 0:03:02.1]} 6... e6 {[%clk 0:02:58.9]}
7. d4 {[%clk 0:03:02.6]} 7... Be7 {[%clk 0:02:57.3]} 8. Nbd2 {[%clk 0:03:02.7]}
8... Nbd7 {[%clk 0:02:56.6]} 9. c4 {[%clk 0:03:02.8]} 9... O-O {[%clk 0:02:57]}
10. a3 {[%clk 0:03:02.8]} 10... a5 {[%clk 0:02:56]} 11. Bc3 {[%clk 0:03:02]}
11... Re8 {[%clk 0:02:55.1]} 12. b4 {[%clk 0:03:01.3]} 12... axb4 {[%clk
0:02:54.9]} 13. axb4 {[%clk 0:03:02.2]} 13... Qc7 {[%clk 0:02:48.3]} 14. Qb3
{[%clk 0:03:01]} 14... Ne4 {[%clk 0:02:46]} 15. Nxe4 {[%clk 0:02:59.9]} 15...
Bxe4 {[%clk 0:02:46.9]} 16. Nd2 {[%clk 0:03:00.4]} 16... Bg6 {[%clk 0:02:45.1]}
17. Rfc1 {[%clk 0:03:00]} 17... Nf6 {[%clk 0:02:39.8]} 18. cxd5 {[%clk
0:02:45.8]} 18... cxd5 {[%clk 0:02:23.2]} 19. b5 {[%clk 0:02:42.1]} 19... Qb6
{[%clk 0:02:01.1]} 20. Bb4 {[%clk 0:02:33]} 20... Bxb4 {[%clk 0:01:35.8]} 21.
Qxb4 {[%clk 0:02:33.9]} 21... Rxa1 {[%clk 0:01:26.8]} 22. Rxa1 {[%clk
0:02:33.3]} 22... Rc8 {[%clk 0:01:26.4]} 23. h3 {[%clk 0:02:20]} 23... Ne4
{[%clk 0:01:24.2]} 24. Nxe4 {[%clk 0:02:11]} 24... Bxe4 {[%clk 0:01:23.7]} 25.
Bf1 {[%clk 0:01:52.8]} 25... h5 {[%clk 0:01:19.5]} 26. Be2 {[%clk 0:01:42.7]}
26... h4 {[%clk 0:01:18.2]} 27. Qe7 {[%clk 0:01:39]} 27... f6 {[%clk 0:00:56]}
28. Bf1 {[%clk 0:01:18.1]} 28... Bf5 {[%clk 0:00:45.9]} 29. Qd7 {[%clk
0:01:13.2]} 29... Qc7 {[%clk 0:00:42.3]} 30. Qxc7 {[%clk 0:01:09.2]} 30... Rxc7
{[%clk 0:00:43.2]} 31. Ra7 {[%clk 0:01:08.3]} 31... e5 {[%clk 0:00:12.6]} 32.
dxe5 {[%clk 0:00:47]} 32... fxe5 {[%clk 0:00:12.4]} 33. Ra8+ {[%clk 0:00:47.9]}
33... Kh7 {[%clk 0:00:12.1]} 34. Rd8 {[%clk 0:00:48.4]} 34... Rc5 {[%clk
0:00:09.8]} 35. Kh2 {[%clk 0:00:42.3]} 35... Kh6 {[%clk 0:00:08.5]} 36. g4
{[%clk 0:00:37.6]} 36... hxg3+ {[%clk 0:00:08.3]} 37. Kxg3 {[%clk 0:00:37.5]}
37... Bc2 {[%clk 0:00:08.1]} 38. Bg2 {[%clk 0:00:36.1]} 38... Ba4 {[%clk
0:00:07.1]} 39. Rxd5 {[%clk 0:00:33.5]} 39... Rxd5 {[%clk 0:00:07]} 40. Bxd5
{[%clk 0:00:34.4]} 40... Bxb5 {[%clk 0:00:06.2]} 41. Bxb7 {[%clk 0:00:34.5]}
41... Kg5 {[%clk 0:00:06.2]} 42. Bc8 {[%clk 0:00:33.8]} 42... Kf6 {[%clk
0:00:06.5]} 43. Kg4 {[%clk 0:00:33.9]} 43... Be2+ {[%clk 0:00:06.3]} 44. Kg3
{[%clk 0:00:33.4]} 44... Bf1 {[%clk 0:00:06.8]} 45. Bb7 {[%clk 0:00:32.7]} 45...
Bd3 {[%clk 0:00:07.2]} 46. Kg4 {[%clk 0:00:30]} 46... Be2+ {[%clk 0:00:06.8]}
47. Bf3 {[%clk 0:00:30.6]} 47... Bd3 {[%clk 0:00:07.2]} 48. Kg3 {[%clk
0:00:27.9]} 48... g5 {[%clk 0:00:06.7]} 49. Bd1 {[%clk 0:00:27.3]} 49... Bf5
{[%clk 0:00:06.1]} 50. Bb3 {[%clk 0:00:27.3]} 50... Bg6 {[%clk 0:00:05.8]} 51.
Bd5 {[%clk 0:00:26.7]} 51... Bf5 {[%clk 0:00:05.9]} 52. Bf3 {[%clk 0:00:27.1]}
52... Bg6 {[%clk 0:00:05.8]} 53. Be2 {[%clk 0:00:27.8]} 53... Bf5 {[%clk
0:00:06.1]} 54. Bg4 {[%clk 0:00:28.7]} 54... Bg6 {[%clk 0:00:06.3]} 55. Kf3
{[%clk 0:00:29.4]} 55... Bf7 {[%clk 0:00:05.8]} 56. Ke2 {[%clk 0:00:29.6]} 56...
Bc4+ {[%clk 0:00:05.9]} 57. Kd2 {[%clk 0:00:29.9]} 57... Bd5 {[%clk 0:00:06]}
58. Kc3 {[%clk 0:00:30.5]} 58... Be4 {[%clk 0:00:05.8]} 59. Kb4 {[%clk
0:00:30.9]} 59... Bg2 {[%clk 0:00:05.9]} 60. Kc5 {[%clk 0:00:31.3]} 60... Be4
{[%clk 0:00:04.8]} 61. Kd6 {[%clk 0:00:31.8]} 61... Bb7 {[%clk 0:00:05.3]} 62.
Kd7 {[%clk 0:00:31.7]} 62... Be4 {[%clk 0:00:05.2]} 63. Ke8 {[%clk 0:00:32]}
63... Bg2 {[%clk 0:00:05.4]} 64. Kf8 {[%clk 0:00:32.4]} 64... Be4 {[%clk
0:00:06]} 65. Kg8 {[%clk 0:00:33]} 65... Bg2 {[%clk 0:00:06.5]} 66. Kh7 {[%clk
0:00:33.4]} 66... Be4+ {[%clk 0:00:07]} 67. Kh6 {[%clk 0:00:33.9]} 67... Bg2
{[%clk 0:00:07.3]} 68. Kh5 {[%clk 0:00:34.3]} 68... Be4 {[%clk 0:00:07.2]} 69.
Be2 {[%clk 0:00:33]} 69... Bg6+ {[%clk 0:00:07.3]} 70. Kg4 {[%clk 0:00:33.5]}
70... Be4 {[%clk 0:00:07.9]} 71. Kg3 {[%clk 0:00:32.8]} 71... Bf5 {[%clk
0:00:08.3]} 72. f3 {[%clk 0:00:31]} 72... Bg6 {[%clk 0:00:08.7]} 73. Bc4 {[%clk
0:00:28.7]} 73... Bf5 {[%clk 0:00:09]} 74. Bd5 {[%clk 0:00:28.7]} 74... Bg6
{[%clk 0:00:09.5]} 75. Bc6 {[%clk 0:00:27.4]} 75... Bf5 {[%clk 0:00:09.6]} 76.
Be8 {[%clk 0:00:26.6]} 76... Be6 {[%clk 0:00:09.4]} 77. Bh5 {[%clk 0:00:26.4]}
77... Bd5 {[%clk 0:00:09.3]} 78. Bg4 {[%clk 0:00:24.8]} 78... Bc4 {[%clk
0:00:09.6]} 79. Bd7 {[%clk 0:00:24.4]} 79... Bd5 {[%clk 0:00:09.7]} 80. Kg4
{[%clk 0:00:24.4]} 80... Bf7 {[%clk 0:00:09.5]} 81. Bf5 {[%clk 0:00:18.7]} 81...
Bd5 {[%clk 0:00:09.3]} 82. Bc8 {[%clk 0:00:16.3]} 82... Bf7 {[%clk 0:00:09.4]}
83. f4 {[%clk 0:00:09]} 83... exf4 {[%clk 0:00:09.2]} 84. exf4 {[%clk
0:00:09.9]} 84... gxf4 {[%clk 0:00:09.5]} 85. Kxf4 {[%clk 0:00:10.8]} 85... Kg7
{[%clk 0:00:09.8]} 86. Kg5 {[%clk 0:00:09.4]} 86... Bd5 {[%clk 0:00:09.7]} 87.
h4 {[%clk 0:00:08.4]} 87... Kh8 {[%clk 0:00:09.8]} 88. h5 {[%clk 0:00:08.8]}
88... Be4 {[%clk 0:00:09.7]} 89. h6 {[%clk 0:00:09.3]} 89... Bd3 {[%clk
0:00:09.9]} 1/2-1/2